Workbook

Sheet Copyright
A1: Document réalisé par Lombard Franck
A2: Lien donné par juju Sur chaleurTerre,com
A3: Modifié et adapté Par et pour w36xb2w
A4: Le 15 8 2010
A6: Mot de passe W36xb2w
A8: mettre à jour les tarifs dans les feuilles/ base/hc/ tempo
A10: Attention Remettre la véritable taxe communale
A11: remplir la feuille elec les données se mettent a jour
A12: remplir la feuille de données pour Abonnement CTA CSPE TSPE TVA tout le reste ce calcul seul

Sheet Données
A1: Attention mettre a jour les valeurs abonnement et prix du kw
A3: Puissance souscrite | C3: 15
C4: Hp ou HP HC
C5: Ancien | D5: Nouveau
A6: Consommation HP | C6: 0 | D6: =E11 -> 0 | E6: =D6-C6 -> 0
F8: % HP/HC | O8: calcul 2012 | P8: http://itow.fr/itow/edfbc.php
A9: Consommation HP | C9: 0 | D9: =elec!K30 -> 0 | E9: =D9-C9 -> 0 | F9: =E9/E11 -> 
A10: Consommation HC | C10: 0 | D10: =elec!K31 -> 0 | E10: =D10-C10 -> 0 | F10: =E10/E11 -> 
A11: Consommation totale | C11: =SUM(C9:C10) -> 0 | D11: =SUM(D9:D10) -> 0 | E11: =SUM(E9:E10) -> 0 | F11: =F10+F9 -> 
C13: TEMPO
D14: Nouveau | E14: Somme
A15: HC | C15: 0 | D15: =E11*F15 -> 0 | E15: =D15-C15 -> 0 | F15: 0.31
A16: HP | C16: 0 | D16: =E11*F16 -> 0 | E16: 0 | F16: 0.56 | G16: =F16+F15 -> 0.87
A17: HC | C17: 0 | D17: =E11*F17 -> 0 | E17: 0 | F17: 0.04
A18: HP | C18: 0 | D18: =E6*F18 -> 0 | E18: 0 | F18: 0.06 | G18: =F18+F17 -> 0.1
A19: HC | C19: 0 | D19: =E6*F19 -> 0 | E19: 0 | F19: 0.02
A20: HP | C20: 0 | D20: =E6*F20 -> 0 | E20: 0 | F20: 0.01 | G20: =F20+F19 -> 0.03
E21: =SUM(E15:E20) -> 0 | F21: =SUM(F15:F20) -> 1
C25: Période en mois
A26: Abonnement | C26: 12
C27: Taux TVA
A28: Abonnement | B28: Tva réduite | C28: 0.055
A29: Consommation | B29: Tva normale | C29: 0.2
A30: Autres prestations | B30: Tva normale | C30: 0.2
A36: Autres prestations | B36: =NOW() -> 2018-10-04T11:01:15.590
A37: CSPE | B37: 0.0195
A38: TSPE | B38: 0.0225
A39: Taxe departementale | B39: 0.00319
A40: Taxe Communale | B40: 0
A41: Assiette | B41: 0.8
D43: 0.032
C45: Ps KVA | D45: Composante Gestion a1 | E45: Soutirage a2 | F45: composante comptage | H45: TURPE annuel | I45: TURPE MOIS | J45: CTA/mois | K45: CTA annuel
K46: 0.2704
C47: 3 | D47: 9.02 | E47: 3.6 | F47: 24 | H47: =IF(Puissance_souscrite=C47,D47+F47+(C47*E47),0) -> 0 | I47: =H47/12 -> 0 | J47: =IF(I47*K$46=0," ",I47*K$46) ->  | K47: =K$46*H47 -> 0
C48: 6 | D48: =D47 -> 9.02 | E48: 3.6 | F48: 24 | H48: =IF(Puissance_souscrite=C48,D48+F48+(C48*E48),0) -> 0 | I48: =H48/12 -> 0 | K48: 0
C49: 9 | D49: 9.02 | E49: 3.6 | F49: 24 | H49: =IF(Puissance_souscrite=C49,D49+F49+(C49*E49),0) -> 0 | I49: 0 | K49: 0
C50: 12 | D50: =D49 -> 9.02 | E50: 7.2 | F50: =F49 -> 24 | H50: 0 | I50: 0 | K50: 0
C51: 15 | D51: 9.02 | E51: =E50 -> 7.2 | F51: =F50 -> 24 | H51: =IF(Puissance_souscrite=C51,D51+F51+(C51*E51),0) -> 141.02 | I51: =H51/12 -> 11.75166667 | J51: =IF(I51*K$46=0," ",I51*K$46) -> 3.177650667 | K51: =K$46*H51 -> 38.131808
C52: 18 | D52: 9.02 | E52: =E51 -> 7.2 | F52: =F51 -> 24 | H52: 0 | I52: 0 | K52: 0
H53: =MAX(H47:H52) -> 141.02 | I53: =MAX(I47:I52) -> 11.75166667 | J53: =I53*K$46 -> 3.177650667 | K53: =ROUND(MAX(K47:K52),2) -> 38.13
F54: http://www.cre.fr/calculatrice/simple

Sheet Base UEM
D1: Option BASE
A2: Puissance souscrite | B2: =Données!C3 -> 15
B4: Puissance souscrite | C4: Option base HT/mois
C5: Abonnement | D5: Prix du kWh
B6: 3 | C6: =A59/12 -> 3.894166667 | D6: =D59 -> 0.13042
B7: 6 | C7: =A63/12 -> 6.701666667 | D7: =D63 -> 0.12083
B8: 9 | C8: =A67/12 -> 7.733333333 | D8: =D67 -> 0.12192
B9: 12 | C9: =A71/12 -> 11.99583333 | D9: =D8 -> 0.12192
B10: 15 | C10: =A75/12 -> 13.86083333 | D10: 0.12192
B11: 18 | C11: =A79/12 -> 15.87222222 | D11: 0.12192
C15: =TRUNC(VLOOKUP($B2,$B6:$G14,2),2) -> 13.86 | D15: =TRUNC(VLOOKUP($B2,$B6:$G14,3),4) -> 0.1219
A20: Des taxes municipales au taux de 8% et des taxes départementales au taux de 4% basées sur 80% du montant HT
D23: =D21 -> 0
B25: Ancien | C25: Nouveau | D25: Différence | E25: Consommation en kWh | F25: Prix du kWh ht | G25: Prix HT
A26: Consommation | B26: =Données!C6 -> 0 | C26: =Données!D6 -> 0 | D26: =C26-B26 -> 0 | E26: =D26 -> 0 | F26: =D15 -> 0.1219 | G26: =F26*E26 -> 0
B32: Période en mois | F32: Coût de l'abonnement | G32: Cout annuel
F33: / mois
A34: Abonnement | B34: =Données!C26 -> 12 | F34: =C15 -> 13.86 | G34: =F34*B34 -> 166.32
F36: Total HT | G36: =G26+G34 -> 166.32
C38: Kw | D38: Montant HT | E38: Valeur
A39: Taxe départementale | C39: =Données!$D$6 -> 0 | E39: =C39*Données!B39 -> 0
A40: Taxe communale | C40: =C39 -> 0 | E40: =D40*Données!B40 -> 0
A41: =Données!A37 -> CSPE | C41: =C40 -> 0 | E41: =C41*Données!B37 -> 0
A42: =Données!A38 -> TSPE | C42: =C41 -> 0 | E42: =C42*Données!B38 -> 0
A43: CTA | D43: =Données!H53 -> 141.02 | E43: =D43*Données!K46 -> 38.131808
A44: TVA réduite | D44: =G34+((G34*Données!B41)*Données!C39)+E43 -> 204.451808 | E44: =D44*Données!C28 -> 11.24484944
A45: TVA | D45: =SUM(E39:E42)-D44+G36 -> -38.131808 | E45: =D45*Données!C29 -> -7.6263616
D47: =G36 -> 166.32 | E47: =SUM(E39:E45) -> 41.75029584 | F47: Total TTC | G47: =SUM(D47:E47) -> 208.0702958
F48: Prix du Kwh Net | G48: =G47/D26 -> 
A57: Calcul Abonnement de TTC vers HT | B57: 3 | C57: Calcul KWh de TTC vers HT
A58: =B58 -> 56.076 | B58: =B59*(1+Données!C$29) -> 56.076 | C58: TTC | D58: =E58 -> 0.156504 | E58: =E59*(1+Données!C29) -> 0.156504
A59: =A58/(1+Données!C$29) -> 46.73 | B59: 46.73 | C59: HT | D59: =D58/(1+Données!C$29) -> 0.13042 | E59: 0.13042
A61: Calcul Abonnement de TTC vers HT | B61: 6 | C61: Calcul KWh de TTC vers HT
A62: =B62 -> 96.504 | B62: =B63*(1+Données!C$29) -> 96.504 | C62: TTC | D62: =E62 -> 0.144996 | E62: =E63*(1+Données!C$29) -> 0.144996
A63: =A62/(1+Données!C$29) -> 80.42 | B63: 80.42 | C63: HT | D63: =D62/(1+Données!C$29) -> 0.12083 | E63: 0.12083
A65: Calcul Abonnement de TTC vers HT | B65: 9 | C65: Calcul KWh de TTC vers HT
A66: =B66 -> 111.36 | B66: =B67*(1+Données!C29) -> 111.36 | C66: TTC | D66: =E66 -> 0.146304 | E66: =E67*(1+Données!C$29) -> 0.146304
A67: =A66/(1+Données!C$29) -> 92.8 | B67: 92.8 | C67: HT | D67: =D66/(1+Données!C$29) -> 0.12192 | E67: 0.12192
A69: Calcul Abonnement de TTC vers HT | B69: 12
A70: =B70 -> 172.74 | B70: =B71*(1+Données!C29) -> 172.74
A71: =A70/(1+Données!C$29) -> 143.95 | B71: 143.95
A73: Calcul Abonnement de TTC vers HT | B73: 15
A74: =B74 -> 199.596 | B74: =B75*(1+Données!C29) -> 199.596
A75: =A74/(1+Données!C$29) -> 166.33 | B75: 166.33
A77: Calcul Abonnement de TTC vers HT | B77: 18
A78: 228.56 | B78: =B79*(1+Données!C$29) -> 228.564
A79: =A78/(1+Données!C$29) -> 190.4666667 | B79: 190.47

Sheet Option HC bleu
D1: Option H.C
A2: Puissance souscrite | B2: =Données!C3 -> 15
B4: Puissance souscrite | E4: Option Heures Creuses
D5: Abonnement annuel | E5: Abonnement mois | F5: Prix du kWh HC | G5: Prix du kWh HP
B6: 3
B7: 6 | D7: =E7*12 -> 83.76 | E7: =A59/12 -> 6.98 | F7: =D63 -> 0.10596 | G7: =D59 -> 0.13
B8: 9 | D8: 97.925 | E8: =A63/12 -> 8.160416667 | F8: =F7 -> 0.10596 | G8: =G7 -> 0.13
B9: 12 | D9: 152.71 | E9: =A67/12 -> 12.72583333 | F9: =F8 -> 0.10596 | G9: 0.13
B10: 15 | D10: 176.72 | E10: =A71/12 -> 14.72666667 | F10: 0.10596 | G10: 0.13
B11: 18 | D11: 199.86 | E11: =A75/12 -> 16.655 | F11: 0.10596 | G11: 0.13
E15: =TRUNC(VLOOKUP($B2,$B6:$G14,4),2) -> 14.72 | F15: =TRUNC(VLOOKUP($B2,$B6:$G14,5),4) -> 0.1059 | G15: =TRUNC(VLOOKUP($B2,$B6:$G14,6),4) -> 0.13
A20: Des taxes municipales au taux de 8% et des taxes départementales au taux de 4% basées sur 80% du montant HT
B25: Ancien | C25: Nouveau | D25: Différence | E25: Consommation en kWh | F25: Prix du kWh | G25: Prix HT
A26: Consommation HP | B26: =Données!C9 -> 0 | C26: =Données!E9 -> 0 | D26: =C26-B26 -> 0 | E26: =D26 -> 0 | F26: =G15 -> 0.13 | G26: =F26*E26 -> 0
A27: Consommation HC | B27: =Données!C10 -> 0 | C27: =Données!E10 -> 0 | D27: =C27-B27 -> 0 | E27: =D27 -> 0 | F27: =F15 -> 0.1059 | G27: =F27*E27 -> 0
A28: Somme | D28: =D27+D26 -> 0 | G28: =G27+G26 -> 0 | H28: ok
B32: Période en mois | F32: Coût de l'abonnement
F33: / mois
A34: Abonnement | B34: ='Base UEM'!B34:C34 -> 12 | F34: =E15 -> 14.72 | G34: =F34*B34 -> 176.64 | H34: ok
E36: Total HT | G36: =SUM(G28:G34) -> 176.64 | H36: ok
C38: Kw | D38: Montant HT | E38: Valeur
A39: Taxe départementale | C39: =Données!E11 -> 0 | E39: =C39*Données!B39 -> 0
A40: Taxe communale | C40: =C39 -> 0 | E40: =C40*Données!B40 -> 0
A41: =Données!A37 -> CSPE | C41: =C40 -> 0 | E41: =C41*Données!B37 -> 0 | F41: OK
C42: =C41 -> 0 | E42: =C42*Données!B38 -> 0 | F42: OK
A43: =Données!K45 -> CTA annuel | D43: =Données!H53 -> 141.02 | E43: =D43*Données!K46 -> 38.131808 | F43: OK
A44: TVA réduite | D44: =G34+((G34*Données!B41)*Données!C39)+E43 -> 214.771808 | E44: =D44*Données!C28 -> 11.81244944 | F44: OK
A45: TVA | D45: =SUM(E39:E43)+G36-D44 -> 0 | E45: =D45*Données!C30 -> 0 | F45: OK
D47: =G36 -> 176.64 | E47: =SUM(E39:E45) -> 49.94425744 | F47: Total TTC | G47: =SUM(D47:E47) -> 226.5842574
F48: Prix du Kwh Net | G48: =G47/D28 -> 
A57: Calcul Abonnement de TTC vers HT | B57: 6 | C57: Calcul KWh HP de TTC vers HT
A58: =B58 -> 100.512 | B58: =B59*(1+Données!C$29) -> 100.512 | C58: TTC | D58: =E58 -> 0.156 | E58: =E59*(1+Données!C$29) -> 0.156
A59: =A58/(1+Données!C$29) -> 83.76 | B59: 83.76 | C59: HT | D59: =D58/(1+Données!C29) -> 0.13 | E59: 0.13
A61: Calcul Abonnement de TTC vers HT | B61: 9 | C61: Calcul KWh HC de TTC vers HT
A62: =B62 -> 117.51 | B62: =B63*(1+Données!C$29) -> 117.51 | C62: TTC | D62: =E62 -> 0.127152 | E62: =E63*(1+Données!C$29) -> 0.127152
A63: =A62/(1+Données!C$29) -> 97.925 | B63: 97.925 | C63: HT | D63: =D62/(1+Données!C29) -> 0.10596 | E63: 0.10596
A65: Calcul Abonnement de TTC vers HT | B65: 12
A66: =B66 -> 183.252 | B66: =B67*(1+Données!C$29) -> 183.252
A67: =A66/(1+Données!C$29) -> 152.71 | B67: 152.71
A69: Calcul Abonnement de TTC vers HT | B69: 15
A70: =B70 -> 212.064 | B70: =B71*(1+Données!C$29) -> 212.064
A71: =A70/(1+Données!C$29) -> 176.72 | B71: 176.72
A73: Calcul Abonnement de TTC vers HT | B73: 18
A74: =B74 -> 239.832 | B74: =B75*(1+Données!C$29) -> 239.832
A75: =A74/(1+Données!C$29) -> 199.86 | B75: 199.86

Sheet Tempo bleu
D1: Option tempo
A2: Puissance souscrite | B2: =Données!C3 -> 15
B4: Puissance souscrite | C4: Abonnement | D4: Jours bleus | F4: Jours blancs | H4: Jours rouges
D5: HC | E5: HP | F5: HC | G5: HP | H5: HC | I5: HP
B6: 9 | C6: =A57/12 -> 8.0725 | D6: =D61 -> 0.0896 | E6: =D57 -> 0.1065 | F6: =D69 -> 0.1167 | G6: =D65 -> 0.1395 | H6: =D77 -> 0.1801 | I6: =D73 -> 0.42717
B7: 12 | C7: =A61/12 -> 12.63833333 | D7: =D6 -> 0.0896 | E7: 0.1065 | F7: 0.1167 | G7: 0.1395 | H7: 0.1801 | I7: 0.42717
B8: 15 | C8: =A65/12 -> 14.58583333 | D8: 0.0896 | E8: 0.1065 | F8: 0.1167 | G8: 0.1395 | H8: 0.1801 | I8: 0.42717
B9: 18 | C9: =A69/12 -> 16.46166667 | D9: 0.0896 | E9: 0.1065 | F9: 0.1167 | G9: 0.1395 | H9: 0.1801 | I9: 0.42717
C13: =TRUNC(VLOOKUP($B2,$B6:$I12,2),4) -> 14.5858 | D13: =TRUNC(VLOOKUP($B2,$B6:$I12,3),4) -> 0.0896 | E13: =TRUNC(VLOOKUP($B2,$B6:$I12,4),4) -> 0.1065 | F13: =TRUNC(VLOOKUP($B2,$B6:$I12,5),4) -> 0.1167 | G13: =TRUNC(VLOOKUP($B2,$B6:$I12,6),4) -> 0.1395 | H13: =TRUNC(VLOOKUP($B2,$B6:$I12,7),4) -> 0.1801 | I13: =TRUNC(VLOOKUP($B2,$B6:$I12,8),4) -> 0.4271
A16: Bleu | B16: =C25-B25+C26-B26 -> 0 | C16: =Données!B37 -> 0.0195 | D16: =B16*C16 -> 0 | F16: HT | G16: TTC
A17: Blanc | B17: =C27-B27+C28-B28 -> 0 | C17: =Données!B$37 -> 0.0195 | D17: =B17*C17 -> 0 | F17: =SUM(D16:D18) -> 0 | G17: =(F17*B44)+F17 -> 0
A18: Rouge | B18: =C29-B29+C30-B30 -> 0 | C18: =Données!B$37 -> 0.0195 | D18: =B18*C18 -> 0
B19: =SUM(B16:B18) -> 0
A20: Des taxes municipales au taux de 8% et des taxes départementales au taux de 4% basées sur 80% du montant HT
B22: =B21+C21 -> 0 | D22: =D21 -> 0
B24: Ancien | C24: Nouveau | D24: Différence | E24: Consommation en kWh | F24: Prix du kWh en € | G24: Prix HT en €
A25: Bleu HC | B25: 0 | C25: =Données!E15 -> 0 | D25: =C25-B25 -> 0 | E25: =D25 -> 0 | F25: =D13 -> 0.0896 | G25: =F25*E25 -> 0
A26: Bleu HP | B26: =Données!C16 -> 0 | C26: =Données!E16 -> 0 | D26: 0 | E26: 0 | F26: =E13 -> 0.1065 | G26: 0
A27: Blanc HC | B27: =Données!C17 -> 0 | C27: =Données!E17 -> 0 | D27: 0 | E27: 0 | F27: =F13 -> 0.1167 | G27: 0
A28: Blanc HP | B28: =Données!C18 -> 0 | C28: =Données!E18 -> 0 | D28: 0 | E28: 0 | F28: =G13 -> 0.1395 | G28: 0
A29: Rouge HC | B29: =Données!C19 -> 0 | C29: =Données!E19 -> 0 | D29: 0 | E29: 0 | F29: =H13 -> 0.1801 | G29: 0
A30: Rouge HP | B30: =Données!C20 -> 0 | C30: =Données!E20 -> 0 | D30: 0 | E30: 0 | F30: =I13 -> 0.4271 | G30: 0
A31: Somme | C31: ² | D31: =SUM(D25:D30) -> 0 | E31: 0 | G31: =SUM(G25:G30) -> 0
B32: Période en mois | F32: Coût de l'abonnement
F33: / mois en €
A34: Abonnement | B34: ='Option HC bleu'!B34:C34 -> 12 | F34: =C13 -> 14.5858 | G34: =F34*B34 -> 175.0296
E36: Total HT | G36: =SUM(G31:G34) -> 175.0296
C38: Kw | D38: Montant HT | E38: Valeur
A39: Taxe départementale | C39: =Données!$D$6 -> 0 | E39: =C39*Données!B39 -> 0
A40: Taxe communale | C40: =C39 -> 0 | E40: =D40*Données!B40 -> 0
A41: =Données!A37 -> CSPE | C41: =C40 -> 0 | E41: =C41*Données!B37 -> 0
A42: =Données!A38 -> TSPE | C42: =C41 -> 0 | E42: =C42*Données!B38 -> 0
A43: ='Base UEM'!A43 -> CTA | D43: =Données!H53 -> 141.02 | E43: =D43*Données!K46 -> 38.131808
A44: TVA réduite | D44: =G34+((G34*Données!B41)*Données!C39)+E43 -> 213.161408 | E44: =D44*Données!C28 -> 11.72387744
A45: TVA | D45: =G36+SUM(E39:E42)-D44 -> -38.131808 | E45: =D45*Données!C30 -> -7.6263616
D47: =G36 -> 175.0296 | E47: =SUM(E39:E45) -> 42.22932384 | F47: Total TTC | G47: =E47+D47 -> 217.2589238
E48: Prix du Kwh Net | G48: =G47/E31 -> 
A55: Calcul Abonnement de TTC vers HT | B55: 9 | C55: Calcul KWh HP de TTC vers HT
A56: =B56 -> 116.244 | B56: =B57*(1+Données!C$29) -> 116.244 | C56: TTC | D56: =E56 -> 0.1278 | E56: =E57*(1+Données!C$29) -> 0.1278
A57: =A56/(1+Données!C$29) -> 96.87 | B57: 96.87 | C57: HT | D57: =D56/(1+Données!C$29) -> 0.1065 | E57: 0.1065
A59: Calcul Abonnement de TTC vers HT | B59: 12 | C59: Calcul KWh HC de TTC vers HT
A60: =B60 -> 181.992 | B60: =B61*(1+Données!C$29) -> 181.992 | C60: TTC | D60: =E60 -> 0.10752 | E60: =E61*(1+Données!C$29) -> 0.10752
A61: =A60/(1+Données!C$29) -> 151.66 | B61: 151.66 | C61: HT | D61: =D60/(1+Données!C$29) -> 0.0896 | E61: 0.0896
A63: Calcul Abonnement de TTC vers HT | B63: 15 | C63: Calcul KWh HP de TTC vers HT
A64: =B64 -> 210.036 | B64: =B65*(1+Données!C$29) -> 210.036 | C64: TTC | D64: =E64 -> 0.1674 | E64: =E65*(1+Données!C$29) -> 0.1674
A65: =A64/(1+Données!C$29) -> 175.03 | B65: 175.03 | C65: HT | D65: =D64/(1+Données!C$29) -> 0.1395 | E65: 0.1395
A67: Calcul Abonnement de TTC vers HT | B67: 18 | C67: Calcul KWh HC de TTC vers HT
A68: =B68 -> 237.048 | B68: =B69*(1+Données!C$29) -> 237.048 | C68: TTC | D68: =E68 -> 0.14004 | E68: =E69*(1+Données!C$29) -> 0.14004
A69: =A68/(1+Données!C$29) -> 197.54 | B69: 197.54 | C69: HT | D69: =D68/(1+Données!C$29) -> 0.1167 | E69: 0.1167
A71: Calcul Abonnement de TTC vers HT | B71: 24 | C71: Calcul KWh HP de TTC vers HT
A72: =B72 -> 581.604 | B72: =B73*(1+Données!C$29) -> 581.604 | C72: TTC | D72: =E72 -> 0.512604 | E72: =E73*(1+Données!C$29) -> 0.512604
A73: =A72/(1+Données!C$29) -> 484.67 | B73: 484.67 | C73: HT | D73: =D72/(1+Données!C$29) -> 0.42717 | E73: 0.42717
A75: Calcul Abonnement de TTC vers HT | B75: 30 | C75: Calcul KWh HC de TTC vers HT
A76: =B76 -> 605.424 | B76: =B77*(1+Données!C$29) -> 605.424 | C76: TTC | D76: =E76 -> 0.21612 | E76: =E77*(1+Données!C$29) -> 0.21612
A77: =A76/(1+Données!C$29) -> 504.52 | B77: 504.52 | C77: HT | D77: =D76/(1+Données!C$29) -> 0.1801 | E77: 0.1801
A79: Calcul Abonnement de TTC vers HT | B79: 36
A80: =B80 -> 710.664 | B80: =B81*(1+Données!C$29) -> 710.664
A81: =A80/(1+Données!C$29) -> 592.22 | B81: 592.22

Sheet COMPAR
A1: COMPARAISON TARIF UEM | H1: 107 | I1: m2 | J1: 108 | K1: http://itow.fr/itow/edfbc.php
B4: Réglage
A5: Mois | B5: =Données!C26 -> 12 | E5: Ancien relevé | G5: Nouveau relevé | I5: PRIX TTC
A6: Puissance KW | B6: =Données!C3 -> 15
B9: Bleu | C9: =Données!G16 -> 0.87 | D9: HC | E9: ='Tempo bleu'!B25 -> 0 | F9: =(G9-E9)/$G$15 ->  | G9: ='Tempo bleu'!C25 -> 0
D10: HP | E10: ='Tempo bleu'!B26 -> 0 | G10: ='Tempo bleu'!C26 -> 0
A11: TEMPO | B11: Blanc | C11: =Données!G18 -> 0.1 | D11: HC | E11: ='Tempo bleu'!B27 -> 0 | G11: ='Tempo bleu'!C27 -> 0
D12: HP | E12: ='Tempo bleu'!B28 -> 0 | G12: ='Tempo bleu'!C28 -> 0
B13: Rouge | C13: =Données!G20 -> 0.03 | D13: HC | E13: ='Tempo bleu'!B29 -> 0 | G13: ='Tempo bleu'!C29 -> 0
D14: HP | E14: ='Tempo bleu'!B30 -> 0 | G14: ='Tempo bleu'!C30 -> 0
F15: Somme | G15: =SUM('Tempo bleu'!E31) -> 0
D16: Autres énergie pour chauffage équivalent | H16: =IF(I16="non",0,F35*G35/365*30) -> 0 | I16: non | J16: jours
D17: Total Chauffage et équivalent | I17: ='Tempo bleu'!G47 -> 217.2589238 | J17: =I17+H16 -> 217.2589238
G18: Prix du Kwh Net | I18: =I17/G15 -> 
D21: Autres énergie pour chauffage équivalent | H21: =H16 -> 0 | J21: =J16 -> jours
D22: HC | E22: ='Option HC bleu'!B27 -> 0 | F22: =G22/G24 ->  | G22: ='Option HC bleu'!C27 -> 0 | I22: ='Option HC bleu'!G47+H21 -> 226.5842574 | J22: =H21+I22 -> 226.5842574 | K22: =I22-I17 -> 9.3253336
A23: OPTION HC | D23: HP | E23: ='Option HC bleu'!B26 -> 0 | F23: =G23/G24 ->  | G23: ='Option HC bleu'!C26 -> 0
F24: =F15 -> Somme | G24: ='Option HC bleu'!D28 -> 0
G25: Prix du Kwh Net | I25: =I22/G24 -> 
D27: Autres énergie pour chauffage équivalent | H27: =H16 -> 0 | J27: =J21 -> jours
A28: BASE UEM 2012 107M2 Chauffés ECS 300 L 2 personnes tarif 15 Kva | E28: ='Base UEM'!B26 -> 0 | G28: ='Base UEM'!C26 -> 0 | I28: ='Base UEM'!G47+H27 -> 208.0702958 | J28: =I28+H27 -> 208.0702958 | K28: =I28-I17 -> -9.188628
G29: Prix du Kwh Net | I29: =I28/G28 -> 
A32: Tout électrique tarif 18 Kw HC moyennes 1981 à 1998 60 m2 chauffés ECS 150 L 4 personnes | G32: =12330+4438 -> 16768 | I32: 3537 | K32: =I32-I22 -> 3310.415743
G33: =G29 -> Prix du Kwh Net | I33: =I32/G32 -> 0.2109375
A35: Fioul et Electricité années 1998 a 2008 tarif 12 Kva 74 m2 chauffés 2 personnes | F35: 2348 | G35: 0.9272 | I35: =G35*F35 -> 2177.0656 | K35: =I35-I17 -> 1959.806676
H36: 4438 | I36: 1053.82
I37: =I36+I35 -> 3230.8856 | K37: =I37-I17 -> 3013.626676
G38: =G33 -> Prix du Kwh Net | I38: =I36/H36 -> 0.237453808
K40: Electricité année en cours
K41: =I32-I22 -> 3310.415743 | L41: =K41/K43*L43 -> 4082.846082 | M41: =K41/K43*M43 -> 5903.574741
K42: http://www.developpement-durable.gouv.fr/energie/petrole/se_resul_fr.php
K43: 60 | L43: 74 | M43: =H1 -> 107
K44: =I37-I22 -> 3004.301343 | L44: =K44/K43*L43 -> 3705.304989 | M44: =K44/K43*M43 -> 5357.670728
K45: Fioul cumul | N45: moyenne | P45: Cout PAC | R45: Facture UEM
F46: GAIN HP | H46: 2008 | I46: 1 | K46: 1204.1 | L46: =K46/K$41*L$41 -> 1485.056667 | M46: =K46/$L$43*$M$43 -> 1741.063514 | N46: =AVERAGE(K46:M46) -> 1476.74006 | O46: =N46 -> 1476.74006 | P46: 2749 | Q46: =Q46+Q47 -> 0
F47: GAIN HC | H47: 2009 | I47: 2 | K47: 832.47 | L47: 1026.713 | M47: 1203.706622 | N47: 1020.963207 | O47: =N47+O46 -> 2497.703267 | P47: 2749 | Q47: =P46+P47 -> 5498 | R47: 1612.53
F48: GAIN HC | H48: 2010 | I48: 3 | K48: 1142.1 | L48: 1408.59 | M48: 1651.414865 | N48: 1400.701622 | O48: =N48+O47 -> 3898.404889 | P48: 2749 | Q48: =Q47+P47 -> 8247 | R48: 1080.74
F49: GAIN HC | H49: 2011 | I49: 4 | K49: 2055.92 | L49: 2535.634667 | M49: 2972.749189 | N49: 2521.434619 | O49: 6419.839508 | P49: 2749 | Q49: 10996 | R49: 981.98
F50: Fin amortissement réel 107 m2 | H50: 2012 | I50: 5 | K50: 1922.11 | L50: 2370.602333 | M50: 2779.267162 | N50: 2357.326498 | O50: 8777.166006 | P50: 2749 | Q50: 13745 | R50: 1197.66
F51: Fin amortissement prévu 74 m2 | H51: 2013 | I51: 6 | K51: 1750.93 | L51: 2159.480333 | M51: 2531.750135 | N51: 2147.386823 | O51: 10924.55283 | P51: 2749 | Q51: 16494 | R51: 1225
H52: 2014 | I52: 7 | K52: 1784.08 | L52: 2200.365333 | M52: 2579.683243 | N52: 2188.042859 | O52: 13112.59569 | P52: 2749 | Q52: 19243 | R52: 1267.94
F53: Fin amortissement prévu 60 m2 | H53: 2015 | I53: 8 | K53: 1809.4 | L53: 2231.593333 | M53: 2616.294595 | N53: =AVERAGE(K53:M53) -> 2219.095976 | O53: 15331.69166 | P53: 2749 | Q53: 21992 | R53: 1320
H54: 2016 | I54: 9 | K54: 1916.43 | L54: 2363.597 | M54: 2771.054189 | N54: 2350.360396 | O54: 17682.05206 | P54: 2749 | Q54: 24741
H55: 2017 | I55: 10 | L55: 0 | M55: 0 | N55: 0 | O55: 17682.05206 | P55: 2749 | Q55: 27490
H56: 2018 | I56: 11 | L56: =K56/K$41*L$41 -> 0 | M56: =K56/$L$43*$M$43 -> 0 | N56: 0 | O56: 17682.05206 | P56: 2749 | Q56: 30239
H57: 2019 | I57: 12 | L57: 0 | M57: 0 | N57: 0 | O57: 17682.05206 | P57: 2749 | Q57: 32988
G58: GAIN TOTAL | K58: =SUM(K46:K57) -> 14417.54 | L58: =SUM(L46:L57) -> 17781.63267 | M58: =SUM(M46:M57) -> 20846.98351 | N58: =AVERAGE(K58:M58) -> 17682.05206 | P58: =SUM(P46:P57) -> 32988 | R58: =SUM(R46:R57) -> 8685.85
G59: Achat | P59: 21000
G60: Prime UEM et Etat | P60: 9300
G61: Cout net PAC | P61: =P59-P60 -> 11700

Sheet Pac
T1: Année | U1: 2012
B2: ANNEES | C2: 2012 | D2: =C2+1 -> 2013 | E2: 2014 | F2: 2015 | G2: 2016 | H2: 2017 | I2: 2018 | J2: 2019 | K2: 2020 | L2: TOTAL | M2: CUMUL Hp/HC | N2: MOYENNE | O2: Kw/j | P2: Somme Kw/j | T2: Mois | U2: 8
A3: MOIS | T3: Jour | U3: 29 | V3: =IF(AND(ISNUMBER(U1),ISNUMBER(U2),ISNUMBER(U3))," " & CHOOSE(WEEKDAY(DATE(U1,U2,U3),1),"DIMANCHE","LUNDI","MARDI","MERCREDI","JEUDI","VENDREDI","SAMEDI") & " !","") -> MERCREDI ! | X3: Remise en route
A4: 2008 | V4: =IF(AND(ISNUMBER(U1),ISNUMBER(U2),ISNUMBER(U3)),"C'est le " & TODAY()-DATE(U1,U2,U3) & "° jour depuis la réparation" & " !","") -> C'est le 2227° jour depuis la réparation !
A5: JANVIER Hp | L5: =SUM(C5:K5) -> 0 | N5: =AVERAGE(D5:K5) ->  | O5: =N5/31 ->  | P5: =O5+O6 -> 
L6: 0 | M6: =+L6+L5 -> 0 | N6: =AVERAGE(D6:K6) ->  | O6: =N6/31 -> 
A7: FÉVRIER Hp | L7: 0 | O7: =N7/28 ->  | P7: =O7+O8 ->  | T7: =TODAY() -> 2018-10-04
L8: 0 | M8: =L8+L7 -> 0 | O8: =N8/28 ->  | T8: Nb Jour écoulé | V8: =IF(AND(ISNUMBER(U1),ISNUMBER(U2),ISNUMBER(U3)),TODAY()-DATE(U1,U2,U3),"") -> 2227
A9: MARS Hp | L9: 0 | P9: =O9+O10 -> 
L10: 0 | M10: =L10+L9 -> 0 | R10: Année | T10: 365
A11: AVRIL Hp | L11: 0 | O11: =N11/30 ->  | P11: =O11+O12 ->  | R11: avant le 7 6 2012 | U11: 6076 | V11: 1549 | W11: 3.93 | X11: h/j
L12: 0 | M12: =L12+L11 -> 0 | O12: =N12/30 ->  | T12: Kw | V12: Heures | W12: résistances | X12: G
A13: MAI Hp | L13: 0 | P13: =O13+O14 ->  | R13: Total PAC | T13: =L40 -> 0 | V13: =L33 -> 0 | W13: =L34 -> 0 | X13: =(T19)/(107*2.5*(21-15))*1000 -> 
L14: 0 | M14: =L14+L13 -> 0 | O14: =N14/31 -> 
A15: JUIN Hp | L15: 0 | O15: =N15/30 ->  | P15: =O15+O16 ->  | R15: Kw/J | T15: =T13/V8 -> 0 | V15: =(V13)/V8 -> 0 | W15: h/j
A16: 30 j ECS seule | L16: 0 | M16: =L16+L15 -> 0 | O16: =N16/30 -> 
A17: JUILLET Hp | L17: 0 | P17: =O17+O18 ->  | R17: Kw/h | T17: =T15/24 -> 0 | V17: =V15*T10 -> 0
A18: 29 j ecs seule | L18: 0 | M18: =L18+L17 -> 0
A19: ECS AOÛT Hp | L19: 0 | N19: =AVERAGE(C19:K19) ->  | P19: =O19+O20 ->  | R19: Kw/hmax | T19: =N5/31/24 -> 
L20: 0 | M20: =L20+L19 -> 0
A21: SEPTEMBRE Hp | L21: 0 | O21: =N21/30 ->  | P21: =O21+O22 -> 
L22: 0 | M22: =L22+L21 -> 0 | O22: =N22/30 -> 
A23: OCTOBRE Hp | L23: 0 | P23: =O23+O24 -> 
L24: 0 | M24: =L24+L23 -> 0
A25: NOVEMBRE Hp | L25: 0 | O25: =N25/30 ->  | P25: =O25+O26 -> 
L26: 0 | M26: =L26+L25 -> 0 | O26: =N26/30 -> 
A27: DÉCEMBRE Hp | L27: 0 | P27: =O27+O28 -> 
L28: 0 | M28: =L28+L27 -> 0 | O28: =N28/31 -> 
R29: Conso /an moyenne | T29: =T10*T15 -> 0
A30: Somme HP /An | C30: =C5+C7+C9+C11+C13+C15+C17+C19+C21+C23+C25+C27 -> 0 | D30: 0 | E30: 0 | F30: 0 | G30: 0 | H30: 0 | I30: 0 | J30: 0 | K30: 0
A31: Somme HC /An | C31: =C6+C8+C10+C12+C14+C16+C18+C20+C22+C24+C26+C28 -> 0 | D31: 0 | E31: 0 | F31: 0 | G31: 0 | H31: 0 | I31: 0 | J31: 0 | K31: 0 | R31: Conso ECS mois | T31: =SUM(N15:N20)/3 -> 
A32: Somme Pac /An | C32: =C30+C31 -> 0 | D32: 0 | E32: =E30+E31 -> 0 | F32: 0 | G32: 0 | H32: 0 | I32: 0 | J32: 0 | K32: 0 | M32: =SUM(M5:M28) -> 0 | N32: =SUM(N5:N28) ->  | O32: =AVERAGE(O5:O28) ->  | R32: Conso ECS Jour | T32: =T31/30 -> 
A33: Compresseur | L33: =SUM(C33:K33) -> 0 | R33: Conso ECS absence | T33: 2.45
A34: résistances | L34: =SUM(B34:K34) -> 0
A35: H/Kw | C35: =IF(C33<=0," ",C33/C32) ->  | E35: =IF(E33<=0," ",E33/E32) ->  | F35: =IF(F33<=0," ",F33/F32) -> 
A36: Kw/h | C36: =IF(C32<=0," ",C32/C33) ->  | E36: =IF(E32<=0," ",E32/E33) ->  | F36: =IF(F32<=0," ",F32/F33) -> 
A37: Conso hors PAC annuel | C37: =elec!G32-Pac!C32 -> 0 | D37: =elec!H32-Pac!D32 -> 0 | E37: =elec!I32-Pac!E32 -> 0 | F37: =elec!J32-Pac!F32 -> 0 | G37: =elec!K32-Pac!G32 -> 0 | H37: =elec!P32-Pac!H32 -> 0 | I37: =elec!Q32-Pac!I32 -> 0 | J37: =elec!R32-Pac!J32 -> 0 | K37: =elec!S32-Pac!K32 -> 0 | L37: =SUM(C37:K37) -> 0 | R37: Conso PAC heure | T37: =T29/V17 -> 
A38: Cumul relevé Hp | C38: =C27+C25+C23+C21+C19+C17+C15+C13+C11+C9+C7+C5 -> 0 | D38: =D27+D25+D23+D21+D19+D17+D15+D13+D11+D9+D7+D5+C38 -> 0 | E38: 0 | F38: =F27+F25+F23+F21+F19+F17+F15+F13+F11+F9+F7+F5+E38 -> 0 | G38: 0 | H38: 0 | I38: 0 | J38: 0 | K38: 0 | L38: =K38 -> 0 | R38: conso ECS an | T38: =T31*12 ->  | U38: =T38/T29 ->  | Y38: PAC NUIT 6 KW
A39: Cumul relevé Hc | C39: =C31 -> 0 | D39: =C39+D31 -> 0 | E39: 0 | F39: 0 | G39: 0 | H39: 0 | I39: 0 | J39: 0 | K39: 0 | L39: =K39 -> 0 | R39: COP ECS | T39: =T52/T38 -> 
A40: Cumul relevé HP HC PAC + ECS | C40: =C38+C39 -> 0 | D40: =D38+D39 -> 0 | E40: 0 | F40: 0 | G40: 0 | H40: 0 | I40: 0 | J40: 0 | K40: 0 | L40: =L39+L38 -> 0 | R40: conso chauffage | T40: =T29-T38 ->  | U40: =T40/T29 -> 
R41: Cop moyen annuel | T41: =13000/T40 -> 
A42: Total énergie/An | C42: =C38+C37 -> 0 | D42: =D38+D37 -> 0 | E42: 0 | F42: 0 | G42: 0 | H42: 0 | I42: 0 | J42: 0 | K42: 0 | L42: 0
A43: Energie total | C43: =C42 -> 0 | D43: =C43+D42 -> 0 | E43: 0 | F43: 0 | G43: 0 | H43: 0 | I43: 0 | J43: 0 | K43: 0 | R43: cout ECS/an | T43: =T38*COMPAR!I25 -> 
R44: cout Chauffage | T44: =T40*COMPAR!I25 -> 
A45: MOYENNE/mois | C45: =C42/12 -> 0 | D45: 0 | E45: 0 | F45: 0 | G45: 0 | H45: 0 | I45: 0 | J45: 0 | K45: 0 | L45: 0 | R45: cout PAC/an | T45: =T43+T44 -> 
A46: ECART | C46: =C42 -> 0 | D46: =D42-C42 -> 0 | E46: 0 | F46: 0 | G46: 0 | H46: 0 | I46: 0 | J46: 0 | K46: 0 | L46: 0 | R46: Conso fioul | T46: =2400-T57 -> 1766 | U46: ans
R47: Cout fioul | T47: =T46*0.76 -> 1342.16
A48: TEMPERATURE | C48: 21 | D48: =C48 -> 21 | E48: =D48 -> 21 | F48: 21 | G48: 21 | H48: 21 | I48: =H48 -> 21 | J48: 21 | K48: 21 | L48: =AVERAGE(C48:K48) -> 21 | R48: Amortissement | T48: =2000/T47 -> 1.490135304
A50: Kw/J mini PAC | C50: =C32/365 -> 0 | D50: 0 | E50: 0 | F50: 0 | G50: 0 | H50: 0 | I50: 0 | J50: 0 | K50: 0 | N50: =N37/365 -> 0
R52: Conso cumulus | T52: =8*365 -> 2920
R53: Cout avec cumulus | T53: =T52*COMPAR!I33 -> 615.9375
R54: Gain | T54: =T53-T43 -> 
R55: Amortissement | T55: =2000/T54 -> 
R57: cumulus fioul | T57: 634 | U57: ans
R58: Cout fioul | T58: =T57*0.76 -> 481.84
S68: Sachant qu’il faut environ une puissance de 11 watts par litre d’eau (entre 6 et 8 heures de fonctionnement par tranche de 24 heures) et en moyenne 50 litres d’eau chaude quotidienne , par personne.
S69: Avec cette base vous pouvez calculer la puissance de votre ballon
S70: Prenons ici l'exemple d'un cumuls de branché automatiquement sur le tarif nuit
S71: Nombre de personne | U71: Ballon | V71: Watt/l | W71: Puissance
S72: 6 | U72: 300 | V72: 11 | W72: =V72*U72 -> 3300
S73: Il chauffe entre 6 et 8 heures par nuit au prix de | W73: ='Option HC bleu'!D62 -> 0.127152 | X73: (prix du kWh en heures creuses ) soit | AA73: =W72/1000 -> 3.3 | AB73: x | AC73: 7 | AE73: =AC73*AA73 -> 23.1 | AF73: de fonctionnement par nuit | AH73: =W73*AE73 -> 2.9372112 | AI73: 365 | AJ73: =AI73*AH73 -> 1072.082088
S74: avec PAC Cop | U74: =T39 ->  | AA74: =AA73/U74 ->  | AB74: x | AC74: 7 | AE74: =AC74*AA74 ->  | AF74: de fonctionnement par nuit | AH74: =AE74*W73 ->  | AI74: 365 | AJ74: =AI74*AH74 -> 
B104: ANNEES | C104: =C2 -> 2012 | D104: =D2 -> 2013 | E104: 2014 | F104: 2015 | G104: 2016 | H104: 2017 | I104: 2018 | J104: 2019 | K104: 2020
B105: MOIS
B107: JANVIER | C107: =C5+C6 -> 0 | D107: =D5+D6 -> 0 | E107: =E5+E6 -> 0 | F107: 0 | G107: 0 | H107: 0 | I107: 0 | J107: 0 | K107: 0
B108: FEVRIER | C108: =C7+C8 -> 0 | D108: =D7+D8 -> 0 | E108: =E7+E8 -> 0 | F108: 0 | G108: 0 | H108: 0 | I108: 0 | J108: 0 | K108: 0
B109: MARS | C109: =C9+C10 -> 0 | D109: =D9+D10 -> 0 | E109: =E9+E10 -> 0 | F109: 0 | G109: 0 | H109: 0 | I109: 0 | J109: 0 | K109: 0
B110: AVRIL | C110: =C11+C12 -> 0 | D110: =D11+D12 -> 0 | E110: =E11+E12 -> 0 | F110: 0 | G110: 0 | H110: 0 | I110: 0 | J110: 0 | K110: 0
B111: MAI | C111: =C13+C14 -> 0 | D111: =D13+D14 -> 0 | E111: =E13+E14 -> 0 | F111: 0 | G111: 0 | H111: 0 | I111: 0 | J111: 0 | K111: 0
B112: JUIN | C112: =C15+C16 -> 0 | D112: =D15+D16 -> 0 | E112: =E15+E16 -> 0 | F112: 0 | G112: 0 | H112: 0 | I112: 0 | J112: 0 | K112: 0
B113: JUILLET | C113: =C17+C17 -> 0 | D113: =D17+D17 -> 0 | E113: =E17+E17 -> 0 | F113: 0 | G113: 0 | H113: 0 | I113: 0 | J113: 0 | K113: 0
B114: AOUT | C114: =C19+C20 -> 0 | D114: =D19+D20 -> 0 | E114: =E19+E20 -> 0 | F114: 0 | G114: 0 | H114: 0 | I114: 0 | J114: 0 | K114: 0
B115: SEPT | C115: =C21+C22 -> 0 | D115: =D21+D22 -> 0 | E115: =E21+E22 -> 0 | F115: 0 | G115: 0 | H115: 0 | I115: 0 | J115: 0 | K115: 0
B116: OCT | C116: =C23+C24 -> 0 | D116: =D23+D24 -> 0 | E116: =E23+E24 -> 0 | F116: 0 | G116: 0 | H116: 0 | I116: 0 | J116: 0 | K116: 0
B117: NOV | C117: =C25+C26 -> 0 | D117: =D25+D26 -> 0 | E117: =E25+E26 -> 0 | F117: 0 | G117: 0 | H117: 0 | I117: 0 | J117: 0 | K117: 0
B118: DEC | C118: =C27+C28 -> 0 | D118: =D27+D28 -> 0 | E118: =E27+E28 -> 0 | F118: 0 | G118: 0 | H118: 0 | I118: 0 | J118: 0 | K118: 0
B119: conso PAC | C119: =SUM(C107:C118) -> 0 | D119: 0 | E119: =SUM(E107:E118) -> 0 | F119: 0 | G119: 0 | H119: 0 | I119: 0 | J119: 0 | K119: 0
B121: Cout du kw | C121: =COMPAR!$I$25 ->  | D121: =COMPAR!$I$25 ->  | E121: =COMPAR!$I$25 ->  | F121: =COMPAR!$I$25 ->  | G121: =COMPAR!$I$25 ->  | H121: =COMPAR!$I$25 ->  | I121: =COMPAR!$I$25 ->  | J121: =COMPAR!$I$25 ->  | K121: =COMPAR!$I$25 -> 
B122: cout PAC + ECS | C122: =C121*C119 -> 
B124: Hiver | C124: 0 | D124: =SUM(D107:D110)+SUM(C116:C118) -> 0 | E124: =SUM(E107:E110)+SUM(D116:D118) -> 0 | F124: 0 | G124: 0 | H124: 0 | I124: 0 | J124: 0 | K124: 0

Sheet elec
B2: ANNEES | C2: 2008 | D2: =C2+1 -> 2009 | E2: =D2+1 -> 2010 | F2: 2011 | G2: 2012 | H2: 2013 | I2: 2014 | J2: =I2+1 -> 2015 | K2: =J2+1 -> 2016 | L2: =K2+1 -> 2017 | M2: 2018 | N2: 2019 | O2: =N2+1 -> 2020 | P2: 2021 | Q2: Compteur | R2: CUMUL | S2: MOYENNE 2008/2010 | T2: jour
B3: MOIS
B5: JAN Hp | Q5: =SUM(C5:P5) -> 0 | S5: =AVERAGE(C5:P5) ->  | T5: =S5/31 -> 
B6: hc | Q6: 0 | R6: =Q4+Q6 -> 0 | T6: =S6/31 -> 
B7: FEV Hp | Q7: 0 | R7: 0 | T7: =S7/28 -> 
B8: hc | Q8: 0 | R8: 0 | T8: =S8/28 -> 
B9: MAR Hp | Q9: 0 | R9: 0
B10: hc | Q10: 0 | R10: 0
B11: AVR Hp | Q11: 0 | R11: 0 | T11: =S11/30 -> 
B12: hc | Q12: 0 | R12: 0 | T12: =S12/30 -> 
B13: MAI Hp | Q13: 0 | R13: 0
B14: hc | Q14: 0 | R14: 0
B15: JUI hp | Q15: 0 | R15: =R13+Q15 -> 0 | T15: =S15/30 -> 
B16: hc | Q16: 0 | R16: =Q14+Q16 -> 0 | S16: =AVERAGE(D16:P16) ->  | T16: =S16/30 -> 
B17: JUI Hp | Q17: 0 | R17: =R15+Q17 -> 0 | S17: =AVERAGE(C17:P17) -> 
B18: hc | Q18: 0 | R18: =Q16+Q18 -> 0 | S18: =AVERAGE(D18:P18) -> 
B19: AOU Hp | Q19: 0 | R19: =R17+Q19 -> 0 | S19: =AVERAGE(C19:P19) -> 
B20: hc | Q20: 0 | R20: =Q18+Q20 -> 0 | S20: =AVERAGE(D20:P20) -> 
B21: SEP hp | Q21: 0 | R21: =R19+Q21 -> 0 | S21: =AVERAGE(C21:P21) ->  | T21: =S21/30 -> 
B22: hc | Q22: 0 | R22: =Q20+Q22 -> 0 | S22: =AVERAGE(D22:P22) ->  | T22: =S22/30 -> 
B23: OCT Hp | Q23: 0 | R23: =R21+Q23 -> 0 | S23: =AVERAGE(C23:P23) -> 
B24: hc | Q24: 0 | R24: =Q22+Q24 -> 0 | S24: =AVERAGE(D24:P24) -> 
B25: NOV Hp | Q25: 0 | R25: =R23+Q25 -> 0 | S25: =AVERAGE(C25:P25) ->  | T25: =S25/30 -> 
B26: hc | Q26: 0 | R26: =Q24+Q26 -> 0 | S26: =AVERAGE(D26:P26) ->  | T26: =S26/30 -> 
B27: DEC Hp | Q27: 0 | R27: =R25+Q27 -> 0 | S27: =AVERAGE(C27:P27) -> 
B28: hc | Q28: 0 | R28: =Q26+Q28 -> 0 | S28: =AVERAGE(D28:P28) -> 
A29: index | Q29: COMPTEUR
A30: 38234 | B30: Somme Hp | C30: =C27+C25+C23+C21+C19+C17+C15+C13+C11+C9+C7+C5 -> 0 | D30: =D27+D25+D23+D21+D19+D17+D15+D13+D11+D9+D7+D5 -> 0 | E30: =E27+E25+E23+E21+E19+E17+E15+E13+E11+E9+E7+E5 -> 0 | F30: 0 | G30: 0 | H30: =H27+H25+H23+H21+H19+H17+H15+H13+H11+H9+H7+H5 -> 0 | I30: =I27+I25+I23+I21+I19+I17+I15+I13+I11+I9+I7+I5 -> 0 | J30: 0 | K30: 0 | L30: =L27+L25+L23+L21+L19+L17+L15+L13+L11+L9+L7+L5 -> 0 | M30: 0 | N30: 0 | O30: 0 | P30: 0 | Q30: =SUM(D27+D25)-128+A30+SUM(E30:P30) -> 38106 | R30: =R27 -> 0 | S30: =S27+S25+S23+S21+S19+S17+S15+S13+S11+S9+S7+S5 -> 
A31: 28449 | B31: Somme Hc | C31: =C28+C26+C24+C22+C20+C18+C16+C14+C12+C10+C8+C6 -> 0 | D31: =D28+D26+D24+D22+D20+D18+D16+D14+D12+D10+D8+D6 -> 0 | E31: 0 | F31: 0 | G31: 0 | H31: =H28+H26+H24+H22+H20+H18+H16+H14+H12+H10+H8+H6 -> 0 | I31: =I28+I26+I24+I22+I20+I18+I16+I14+I12+I10+I8+I6 -> 0 | J31: 0 | K31: 0 | L31: =L28+L26+L24+L22+L20+L18+L16+L14+L12+L10+L8+L6 -> 0 | M31: 0 | N31: 0 | O31: 0 | P31: 0 | Q31: =SUM(C31:P31)+A31 -> 28449 | R31: =R28 -> 0 | S31: =S28+S26+S24+S22+S20+S18+S16+S14+S12+S10+S8+S6 -> 
B32: Somme /an | C32: =C31+C30 -> 0 | D32: =D31+D30 -> 0 | E32: 0 | F32: 0 | G32: 0 | H32: 0 | I32: 0 | J32: 0 | K32: 0 | L32: =L31+L30 -> 0 | M32: 0 | N32: 0 | O32: 0 | P32: 0
AI33: =608-234 -> 374
B34: MOYENNE | C34: =C32/12 -> 0 | D34: =D32/12 -> 0 | E34: =E32/12 -> 0 | F34: 0 | G34: 0 | H34: 0 | I34: 0 | J34: 0 | K34: 0 | L34: =L32/12 -> 0 | M34: 0 | N34: 0 | O34: 0 | P34: 0 | Q34: =Q32/12 -> 0 | S34: =S30/12 -> 
B35: ECART | D35: =D32-C32 -> 0 | E35: 0 | F35: 0 | G35: 0 | H35: 0 | I35: 0 | J35: 0 | K35: 0 | L35: =L32-K32 -> 0 | M35: =M32-L32 -> 0 | N35: =N32-M32 -> 0 | O35: =O32-N32 -> 0 | P35: =P32-O32 -> 0 | Q35: =Q32-D32 -> 0 | S35: =AVERAGE(C35:D35) -> 0
B37: Température | C37: 21 | D37: 21 | E37: 21 | F37: 21 | G37: 21 | H37: 21 | I37: 21 | J37: 21 | K37: 21 | L37: 21 | M37: 21 | N37: 21 | O37: 21 | P37: 21 | Q37: =AVERAGE(C37:P37) -> 21
B38: Surface | C38: 107 | D38: 107 | E38: 107 | F38: 107 | G38: 107 | H38: 107 | I38: 107 | J38: 107 | K38: 107 | L38: 107 | M38: 107 | N38: 107 | O38: 107 | P38: 107
B39: Energie | C39: PAC | D39: PAC | E39: PAC | F39: PAC | G39: PAC | H39: PAC | I39: PAC | J39: PAC | K39: PAC | L39: PAC | M39: PAC | N39: PAC | O39: PAC | P39: PAC
B40: ECS | C40: ECS PAC
B41: Kw/J mini | C41: =C30/365 -> 0 | D41: =D30/365 -> 0 | E41: =E30/365 -> 0 | F41: 0 | G41: 0 | H41: 0 | I41: 0 | J41: 0 | K41: 0 | L41: 0 | M41: 0 | N41: 0 | O41: 0 | P41: 0 | S41: =S30/365 -> 
B43: Moyenne | G43: =AVERAGE(D32:J32) -> 0
B100: ANNEES | C100: 2008 | D100: 2009 | E100: =D100+1 -> 2010 | F100: 2011 | G100: 2012 | H100: 2013 | I100: 2014 | J100: 2015 | K100: 2016 | P100: =K100+1 -> 2017
B101: MOIS
B103: JANVIER | C103: =C5+C6 -> 0 | D103: 0 | E103: 0 | F103: 0 | G103: 0 | H103: 0 | I103: 0 | J103: 0 | K103: 0 | P103: 0
B104: FEVRIER | C104: =C7+C8 -> 0 | D104: 0 | E104: 0 | F104: 0 | G104: 0 | H104: 0 | I104: 0 | J104: 0 | K104: 0 | P104: 0
B105: MARS | C105: =C9+C10 -> 0 | D105: 0 | E105: 0 | F105: 0 | G105: 0 | H105: 0 | I105: 0 | J105: 0 | K105: 0 | P105: 0
B106: AVRIL | C106: =C11+C12 -> 0 | D106: 0 | E106: 0 | F106: 0 | G106: 0 | H106: 0 | I106: 0 | J106: 0 | K106: 0 | P106: 0
B107: MAI | C107: =C13+C14 -> 0 | D107: 0 | E107: 0 | F107: 0 | G107: 0 | H107: 0 | I107: 0 | J107: 0 | K107: 0 | P107: 0
B108: JUIN | C108: =C15+C16 -> 0 | D108: 0 | E108: 0 | F108: 0 | G108: 0 | H108: 0 | I108: 0 | J108: 0 | K108: 0 | P108: 0
B109: JUILLET | C109: =C17+C18 -> 0 | D109: 0 | E109: 0 | F109: 0 | G109: 0 | H109: 0 | I109: 0 | J109: 0 | K109: 0 | P109: 0
B110: AOUT | C110: =C19+C20 -> 0 | D110: 0 | E110: 0 | F110: 0 | G110: 0 | H110: 0 | I110: 0 | J110: 0 | K110: 0 | P110: 0
B111: SEPT | C111: =C21+C22 -> 0 | D111: 0 | E111: 0 | F111: 0 | G111: 0 | H111: 0 | I111: 0 | J111: 0 | K111: 0 | P111: 0
B112: OCT | C112: =C23+C24 -> 0 | D112: 0 | E112: 0 | F112: 0 | G112: 0 | H112: =H23+H24 -> 0 | I112: =I23+I24 -> 0 | J112: 0 | K112: 0 | P112: 0
B113: NOV | C113: =C25+C26 -> 0 | D113: 0 | E113: 0 | F113: 0 | G113: 0 | H113: =H25+H26 -> 0 | I113: =I25+I26 -> 0 | J113: 0 | K113: 0 | P113: 0
B114: DEC | C114: =C27+C28 -> 0 | D114: 0 | E114: 0 | F114: 0 | G114: 0 | H114: =H27+H28 -> 0 | I114: =I27+I28 -> 0 | J114: 0 | K114: 0 | P114: 0
B115: conso Electrique | C115: =SUM(C103:C114) -> 0 | D115: 0 | E115: 0 | F115: 0 | G115: 0 | H115: 0 | I115: 0 | J115: 0 | K115: 0 | P115: 0 | Q115: =AVERAGE(C115:H115) -> 0
B117: Conso estimée | C117: =C115 -> 0 | D117: =D115 -> 0 | E117: =E115+(Pac!$D$119/3) -> 0 | F117: =F115+(Pac!$D$119/3) -> 0 | G117: =G115+(Pac!$D$119/3) -> 0 | H117: =H115+(Pac!$D$119/3) -> 0 | I117: =I115+(Pac!$E119/3) -> 0 | J117: =J115+(Pac!$F$119/3) -> 0 | K117: =K115+(Pac!$G$119/3) -> 0 | P117: =P115+(Pac!$H$119/3) -> 0 | Q117: =AVERAGE(C117:H117) -> 0

Sheet Liste
A1: Département | B1: DJU 18° | C1: Temp base | D1: Ville
A2: 1 | B2: 2626 | C2: -10 | D2: 01 Amberieu
A3: 2 | B3: 2963 | C3: -7 | D3: 02 Eparcy
A4: 3 | B4: 2508 | C4: -8 | D4: 03 Vichy
A5: 4 | B5: 3323 | C5: -8 | D5: 04 Saint André Les Alpes
A6: 5 | B6: 4475 | C6: -10 | D6: Agnières En Devoluy
A7: 6 | B7: 3428 | C7: -8
A8: 7 | B8: 2314 | C8: -8
A9: 8 | B9: 3089 | C9: -10
A10: 9 | B10: 3206 | C10: -5
A11: 10 | B11: 2620 | C11: -10
A12: 11 | B12: 1930 | C12: -4
A13: 12 | B13: 2703 | C13: -6
A14: 13 | B14: 1853 | C14: -5
A15: 14 | B15: 2517 | C15: -7 | H15: Calcul DJU base 18°
A16: 15 | B16: 3302 | C16: -8 | H16: DJU = 18 – Tmin + Tmax / 2
A17: 16 | B17: 2136 | C17: -5 | H17: Exemple pour deux jours (NJ)
A18: 17 | B18: 1846 | C18: -5 | H18: Le 10/10/2005 = Tmin 8° Tmax 12 d’où DJU = 18 – (8 + 12 / 2) = 8
A19: 18 | B19: 2487 | C19: -7 | H19: Le 11/10/2005 = Tmin 6° Tmax 10 d’où DJU = 18 – (6 + 10 / 2) = 8
A20: 19 | B20: 3200 | C20: -8 | H20: soit au total 16 DJU (pour NJ=2)
A21: 20 | B21: 3022 | C21: -2
A22: 21 | B22: 2868 | C22: -10 | H22: Correction pour une base 21°
A23: 22 | B23: 2445 | C23: -4 | H23: écart base T° = 21°-18°=3°
A24: 23 | B24: 3061 | C24: -8 | H24: DJU = DJU période + (NJ * écart base T°)
A25: 24 | B25: 2079 | C25: -5 | H25: DJU = 16 + ( 2 * 3) = 22
A26: 25 | B26: 3548 | C26: -12
A27: 26 | B27: 3389 | C27: -6
A28: 27 | B28: 2600 | C28: -7
A29: 28 | B29: 2586 | C29: -7
A30: 29 | B30: 2160 | C30: -4
A31: 30 | B31: 3928 | C31: -5
A32: 31 | B32: 2511 | C32: -5
A33: 32 | B33: 2150 | C33: -5
A34: 33 | B34: 2037 | C34: -4
A35: 34 | B35: 1825 | C35: -4
A36: 35 | B36: 2292 | C36: -5
A37: 36 | B37: 2403 | C37: -7
A38: 37 | B38: 2338 | C38: -7
A39: 38 | B39: 3700 | C39: -10
A40: 39 | B40: 2918 | C40: -10
A41: 40 | B41: 2036 | C41: -4
A42: 41 | B42: 2467 | C42: -7
A43: 42 | B43: 2636 | C43: -10
A44: 43 | B44: 2905 | C44: -8
A45: 44 | B45: 2199 | C45: -5
A46: 45 | B46: 2532 | C46: -7
A47: 46 | B47: 2132 | C47: -6
A48: 47 | B48: 2078 | C48: -5
A49: 48 | B49: 3500 | C49: -6
A50: 49 | B50: 2308 | C50: -7
A51: 50 | B51: 2228 | C51: -4
A52: 51 | B52: 2709 | C52: -10
A53: 52 | B53: 2954 | C53: -12
A54: 53 | B54: 2550 | C54: -7
A55: 54 | B55: 2923 | C55: -15 | D55: nancy
A56: 55 | B56: 2985 | C56: -12 | D56: verdun
A57: 56 | B57: 2163 | C57: -4
A58: 57 | B58: 2981 | C58: -15 | D58: Metz
A59: 58 | B59: 2858 | C59: -10
A60: 59 | B60: 2720 | C60: -9
A61: 60 | B61: 2680 | C61: -7
A62: 61 | B62: 2537 | C62: -7
A63: 62 | B63: 2644 | C63: -9
A64: 63 | B64: 3918 | C64: -8
A65: 64 | B65: 4083 | C65: -5
A66: 65 | B66: 5243 | C66: -5
A67: 66 | B67: 3931 | C67: -4
A68: 67 | B68: 3310 | C68: -15
A69: 68 | B69: 4036 | C69: -15
A70: 69 | B70: 3012 | C70: -10
A71: 70 | B71: 3101 | C71: -12
A72: 71 | B72: 2935 | C72: -10
A73: 72 | B73: 2428 | C73: -7
A74: 73 | B74: 4546 | C74: -10
A75: 74 | B75: 3869 | C75: -10
A76: 75 | B76: 2406 | C76: -5
A77: 76 | B77: 2569 | C77: -7
A78: 77 | B78: 2626 | C78: -7
A79: 78 | B79: 2659 | C79: -7
A80: 79 | B80: 2350 | C80: -7
A81: 80 | B81: 2607 | C81: -9
A82: 81 | B82: 2250 | C82: -5
A83: 82 | B83: 2150 | C83: -5
A84: 83 | B84: 2589 | C84: -2
A85: 84 | B85: 4277 | C85: -6
A86: 85 | B86: 2214 | C86: -5
A87: 86 | B87: 2363 | C87: -7
A88: 87 | B88: 2520 | C88: -8
A89: 88 | B89: 2875 | C89: -15
A90: 89 | B90: 2532 | C90: -10
A91: 90 | B91: 3939 | C91: -15
A92: 91 | B92: 2688 | C92: -7
A93: 92 | B93: 2500 | C93: -5
A94: 93 | B94: 2464 | C94: -5
A95: 94 | B95: 2510 | C95: -5
A96: 95 | B96: 2559 | C96: -7
